{"text_format":"3","workbook":"xlsx","n_sheets":8,"sheets":["Wskazówki","Stali klienci","Okazjonalni klienci","Potencjalni klienci","Plan dla sieci kontaktów — KW1","Plan dla sieci kontaktów — KW2","Plan dla sieci kontaktów — KW3","Plan dla sieci kontaktów — KW4"],"not_rendered":{"defined_names":7},"read":"whole","date_system":"1900"}

{"sheet":"Wskazówki","index":0,"n_rows":17,"n_cols":5,"rows_kept":17,"merged":[[0,0,0,2],[1,1,1,6],[2,1,2,6],[3,1,3,6],[4,1,4,6],[5,1,5,6],[6,1,6,6],[7,1,7,6],[8,1,8,6],[9,1,9,6],[10,1,10,6],[11,1,11,6]]}
["Śledzenie kontaktów",null,null,"Wskazówki"]
[null,"1. Zdecyduj, do której kategorii należy twój kontakt:"]
[null,"• Stali klienci — osoby, z którymi chcesz utrzymywać regularny kontakt;"]
[null,"• Okazjonalni klienci — osoby, z którymi chcesz się kontaktować kilka razy w roku;"]
[null,"• Potencjalni klienci — osoby/firmy, które chciałbyś zachować w bazie danych, aby móc się do nich zwrócić, gdy nadejdzie odpowiedni moment."]
[null,"2. Otwórz odpowiednią kartę arkusza."]
[null,"3. Wprowadź informacje (aby utworzyć nowy wiersz w komórce, naciśnij klawisze Alt+Enter w systemie Windows lub klawisze Opcja+Return na komputerze Mac)."]
[null,"Tutaj znajdziesz nowe instrukcje dotyczące wierszy dla mobilnych aplikacji programu Excel."]
[null,"4. W kolumnie Data kolejnego kontaktu usuń przykładową datę/formułę i wprowadź własną datę \ni naciśnij klawisz Enter."]
[null,"5. Kolumna Data kolejnego kontaktu będzie sygnalizowała kolorem czerwonym bliskie terminy, żółtym zbliżające się, a \nzielonym odległe terminy."]
[null,"6. W miarę zbliżania się daty kolejnego kontaktu kolor będzie się odpowiednio zmieniał."]
[null,"7. Po skontaktowaniu się z kontaktem wpisz TAK w kolumnie Gotowe?. Spowoduje to wyszarzenie daty. "]
[null,"8. Jeśli chcesz się skontaktować ponownie, zastąp TAK wartością NIE i wpisz nową Datę kolejnego kontaktu."]
[null,null,"Czerwony","Żółty","Zielony"]
[null,"Stali klienci","1–3 dni","za 4–7 dni","za więcej niż 8–14 dni"]
[null,"Okazjonalni klienci","1–7 dni","za 8–45 dni","za więcej niż 46–90 dni"]
[null,"Potencjalni klienci","1–14 dni","za 15–60 dni","za więcej niż 60–120 dni"]

{"sheet":"Stali klienci","index":1,"n_rows":7,"n_cols":8,"rows_kept":7,"merged":[[0,0,0,2]]}
["Śledzenie kontaktów",null,null,"Stali klienci"]
[]
["Imię i nazwisko","Firma","Informacje kontaktowe","Gdzie się spotkaliśmy","Notatki","Data kolejnego kontaktu","Gotowe","Notatki z rozmowy"]
["Marek Pawłowski","Adventure Works","Kierownik projektu\nmarek@adventure-works.com\n(234) 555-0134\nadventure-works.com\nlinkedin.com/in/marek-pawlowski","Targi 2010 r.","Zapytaj o córkę Sandrę i postępy w remoncie. Nie lubi dużych grup i pikantnego jedzenia.",{"$f":"TODAY()+8","v":"2021-07-22"},"NIE"]
["Imię i nazwisko","Nazwa firmy","Stanowisko\nAdres e-mail\nNumer telefonu\nWitryna internetowa\nLinki do profilów społecznościowych\n","Lokalizacja","Zapisz wszystkie informacje, które chcesz pamiętać o tej osobie: gdzie się spotkaliście, o czym rozmawialiście, jakie tematy chcesz poruszyć następnym razem itp.",{"$f":"TODAY()-3","v":"2021-07-11"},"TAK"]
["Imię i nazwisko","Nazwa firmy","Stanowisko\nAdres e-mail\nNumer telefonu\nWitryna internetowa\nLinki do profilów społecznościowych\n","Lokalizacja","Zapisz wszystkie informacje, które chcesz pamiętać o tej osobie: gdzie się spotkaliście, o czym rozmawialiście, jakie tematy chcesz poruszyć następnym razem itp.",{"$f":"TODAY()+-3","v":"2021-07-11"},"NIE"]
["Imię i nazwisko","Nazwa firmy","Stanowisko\nAdres e-mail\nNumer telefonu\nWitryna internetowa\nLinki do profilów społecznościowych\n","Lokalizacja","Zapisz wszystkie informacje, które chcesz pamiętać o tej osobie: gdzie się spotkaliście, o czym rozmawialiście, jakie tematy chcesz poruszyć następnym razem itp.",{"$f":"TODAY()+6","v":"2021-07-20"},"NIE"]

{"sheet":"Okazjonalni klienci","index":2,"n_rows":7,"n_cols":8,"rows_kept":7,"merged":[[0,0,0,2]]}
["Śledzenie kontaktów",null,null,"Okazjonalni klienci"]
[]
["Imię i nazwisko","Firma","Informacje kontaktowe","Gdzie się spotkaliśmy","Notatki","Data kolejnego kontaktu","Gotowe","Notatki z rozmowy"]
["Marek Pawłowski","Adventure Works","Kierownik ds. zasobów ludzkich\nmarek@adventure-works.com\n(434) 555-0123\nwww.adventure-works.com\nlinkedin.com/in/marek-pawlowski","Urlop w Vermont 2016 r.","Przydatne zarówno w przypadku kontaktów związanych z zatrudnieniem, jak i pytań marketingowych",{"$f":"TODAY()+90","v":"2021-10-12"},"NIE"]
["Imię i nazwisko","Nazwa firmy","Stanowisko\nAdres e-mail\nNumer telefonu\nWitryna internetowa\nLinki do profilów społecznościowych\n","Lokalizacja","Zapisz wszystkie informacje, które chcesz pamiętać o tej osobie: gdzie się spotkaliście, o czym rozmawialiście, jakie tematy chcesz poruszyć następnym razem itp.",{"$f":"TODAY()-3","v":"2021-07-11"},"TAK"]
["Imię i nazwisko","Nazwa firmy","Stanowisko\nAdres e-mail\nNumer telefonu\nWitryna internetowa\nLinki do profilów społecznościowych\n","Lokalizacja","Zapisz wszystkie informacje, które chcesz pamiętać o tej osobie: gdzie się spotkaliście, o czym rozmawialiście, jakie tematy chcesz poruszyć następnym razem itp.",{"$f":"TODAY()+-3","v":"2021-07-11"},"NIE"]
["Imię i nazwisko","Nazwa firmy","Stanowisko\nAdres e-mail\nNumer telefonu\nWitryna internetowa\nLinki do profilów społecznościowych\n","Lokalizacja","Zapisz wszystkie informacje, które chcesz pamiętać o tej osobie: gdzie się spotkaliście, o czym rozmawialiście, jakie tematy chcesz poruszyć następnym razem itp.",{"$f":"TODAY()+40","v":"2021-08-23"},"NIE"]

{"sheet":"Potencjalni klienci","index":3,"n_rows":7,"n_cols":8,"rows_kept":7,"merged":[[0,0,0,2]]}
["Śledzenie kontaktów",null,null,"Potencjalni klienci"]
[]
["Imię i nazwisko","Firma","Informacje kontaktowe","Gdzie się spotkaliśmy","Notatki","Data kolejnego kontaktu","Gotowe","Notatki z rozmowy"]
["Marek Pawłowski","Freelancer","Projektant\nosoba@example.com\n425-555-0123\nwitryna.pl\nlinkedin.com/in/marek-pawlowski","Zakończenie szkoły syna 2016 r.","Niedawno ukończone studia — bardzo kompetentny. Może być przydatny dla przyszłych klientów.",{"$f":"TODAY()+89","v":"2021-10-11"},"NIE"]
["Imię i nazwisko","Nazwa firmy","Stanowisko\nAdres e-mail\nNumer telefonu\nWitryna internetowa\nLinki do profilów społecznościowych\n","Lokalizacja","Zapisz wszystkie informacje, które chcesz pamiętać o tej osobie: gdzie się spotkaliście, o czym rozmawialiście, jakie tematy chcesz poruszyć następnym razem itp.",{"$f":"TODAY()-3","v":"2021-07-11"},"TAK"]
["Imię i nazwisko","Nazwa firmy","Stanowisko\nAdres e-mail\nNumer telefonu\nWitryna internetowa\nLinki do profilów społecznościowych\n","Lokalizacja","Zapisz wszystkie informacje, które chcesz pamiętać o tej osobie: gdzie się spotkaliście, o czym rozmawialiście, jakie tematy chcesz poruszyć następnym razem itp.",{"$f":"TODAY()+-3","v":"2021-07-11"},"NIE"]
["Imię i nazwisko","Nazwa firmy","Stanowisko\nAdres e-mail\nNumer telefonu\nWitryna internetowa\nLinki do profilów społecznościowych\n","Lokalizacja","Zapisz wszystkie informacje, które chcesz pamiętać o tej osobie: gdzie się spotkaliście, o czym rozmawialiście, jakie tematy chcesz poruszyć następnym razem itp.",{"$f":"TODAY()+30","v":"2021-08-13"},"NIE"]

{"sheet":"Plan dla sieci kontaktów — KW1","index":4,"n_rows":20,"n_cols":6,"rows_kept":20,"merged":[[0,0,0,3],[2,0,2,3],[4,0,4,3],[14,5,17,5],[18,0,18,3]]}
["Plan rozszerzenia sieci kontaktów"]
["Wskazówki"]
["Zanotuj, jak planujesz rozszerzyć sieć kontaktów w tym kwartale (np. wykonując więcej połączeń telefonicznych, więcej podróżując itp.). Za każdym razem, gdy otrzymasz informacje o nowym kontakcie, zmień liczbę rzeczywistych nawiązanych kontaktów, aby śledzić postępy i widzieć, jak blisko jesteś osiągnięcia celu."]
[]
["Jak zamierzam rozszerzyć moją sieć kontaktów w tym kwartale"]
["1. Wykonanie większej liczby połączeń telefonicznych"]
["2. Więcej podróży"]
[]
[]
[]
[]
[]
[]
["Kwartalny cel dotyczący kontaktów","Termin","Rzeczywiste kontakty nawiązane w kwartale","Wyniki"]
[20,{"$f":"TODAY()","v":"2021-07-14"},12,{"$f":"IF(tblGoals[[#This Row],[Kwartalny cel dotyczący kontaktów]]>0,tblGoals[[#This Row],[Rzeczywiste kontakty nawiązane w kwartale]]/tblGoals[[#This Row],[Kwartalny cel dotyczący kontaktów]],\"\")","v":{"v":0.6,"d":"60%"}},null,"0–25%\n26–50%\n51–75%\n76–100%\n\nKolor zmienia się w zależności od osiągniętej wartości procentowej"]
[{"$nulls":3},{"$f":"IF(tblGoals[[#This Row],[Kwartalny cel dotyczący kontaktów]]>0,tblGoals[[#This Row],[Rzeczywiste kontakty nawiązane w kwartale]]/tblGoals[[#This Row],[Kwartalny cel dotyczący kontaktów]],\"\")","v":""}]
[{"$nulls":3},{"$f":"IF(tblGoals[[#This Row],[Kwartalny cel dotyczący kontaktów]]>0,tblGoals[[#This Row],[Rzeczywiste kontakty nawiązane w kwartale]]/tblGoals[[#This Row],[Kwartalny cel dotyczący kontaktów]],\"\")","v":""}]
[]
["Refleksja nad wynikami / Uwagi dotyczące rzeczy do poprawy"]
["Prawie się udało. Spróbuj zadzwonić w porze lunchu."]

{"sheet":"Plan dla sieci kontaktów — KW2","index":5,"n_rows":20,"n_cols":6,"rows_kept":20,"merged":[[0,0,0,3],[2,0,2,3],[4,0,4,3],[14,5,17,5],[18,0,18,3]]}
["Plan rozszerzenia sieci kontaktów"]
["Wskazówki"]
["Zanotuj, jak planujesz rozszerzyć sieć kontaktów w tym kwartale (np. wykonując więcej połączeń telefonicznych, więcej podróżując itp.). Za każdym razem, gdy otrzymasz informacje o nowym kontakcie, zmień liczbę rzeczywistych nawiązanych kontaktów, aby śledzić postępy i widzieć, jak blisko jesteś osiągnięcia celu."]
[]
["Jak zamierzam rozszerzyć moją sieć kontaktów w tym kwartale"]
["1. Wykonanie większej liczby połączeń telefonicznych"]
["2. Więcej podróży"]
[]
[]
[]
[]
[]
[]
["Kwartalny cel dotyczący kontaktów","Termin","Rzeczywiste kontakty nawiązane w kwartale","Wyniki"]
[20,{"$f":"TODAY()","v":"2021-07-14"},12,{"$f":"IF(tblGoals3[[#This Row],[Kwartalny cel dotyczący kontaktów]]>0,tblGoals3[[#This Row],[Rzeczywiste kontakty nawiązane w kwartale]]/tblGoals3[[#This Row],[Kwartalny cel dotyczący kontaktów]],\"\")","v":{"v":0.6,"d":"60%"}},null,"0–25%\n26–50%\n51–75%\n76–100%\n\nKolor zmienia się w zależności od osiągniętej wartości procentowej"]
[{"$nulls":3},{"$f":"IF(tblGoals3[[#This Row],[Kwartalny cel dotyczący kontaktów]]>0,tblGoals3[[#This Row],[Rzeczywiste kontakty nawiązane w kwartale]]/tblGoals3[[#This Row],[Kwartalny cel dotyczący kontaktów]],\"\")","v":""}]
[{"$nulls":3},{"$f":"IF(tblGoals3[[#This Row],[Kwartalny cel dotyczący kontaktów]]>0,tblGoals3[[#This Row],[Rzeczywiste kontakty nawiązane w kwartale]]/tblGoals3[[#This Row],[Kwartalny cel dotyczący kontaktów]],\"\")","v":""}]
[]
["Refleksja nad wynikami / Uwagi dotyczące rzeczy do poprawy"]
["Prawie się udało. Spróbuj zadzwonić w porze lunchu."]

{"sheet":"Plan dla sieci kontaktów — KW3","index":6,"n_rows":20,"n_cols":6,"rows_kept":20,"merged":[[0,0,0,3],[2,0,2,3],[4,0,4,3],[14,5,17,5],[18,0,18,3]]}
["Plan rozszerzenia sieci kontaktów"]
["Wskazówki"]
["Zanotuj, jak planujesz rozszerzyć sieć kontaktów w tym kwartale (np. wykonując więcej połączeń telefonicznych, więcej podróżując itp.). Za każdym razem, gdy otrzymasz informacje o nowym kontakcie, zmień liczbę rzeczywistych nawiązanych kontaktów, aby śledzić postępy i widzieć, jak blisko jesteś osiągnięcia celu."]
[]
["Jak zamierzam rozszerzyć moją sieć kontaktów w tym kwartale"]
["1. Wykonanie większej liczby połączeń telefonicznych"]
["2. Więcej podróży"]
[]
[]
[]
[]
[]
[]
["Kwartalny cel dotyczący kontaktów","Termin","Rzeczywiste kontakty nawiązane w kwartale","Wyniki"]
[20,{"$f":"TODAY()","v":"2021-07-14"},12,{"$f":"IF(tblGoals34[[#This Row],[Kwartalny cel dotyczący kontaktów]]>0,tblGoals34[[#This Row],[Rzeczywiste kontakty nawiązane w kwartale]]/tblGoals34[[#This Row],[Kwartalny cel dotyczący kontaktów]],\"\")","v":{"v":0.6,"d":"60%"}},null,"0–25%\n26–50%\n51–75%\n76–100%\n\nKolor zmienia się w zależności od osiągniętej wartości procentowej"]
[{"$nulls":3},{"$f":"IF(tblGoals34[[#This Row],[Kwartalny cel dotyczący kontaktów]]>0,tblGoals34[[#This Row],[Rzeczywiste kontakty nawiązane w kwartale]]/tblGoals34[[#This Row],[Kwartalny cel dotyczący kontaktów]],\"\")","v":""}]
[{"$nulls":3},{"$f":"IF(tblGoals34[[#This Row],[Kwartalny cel dotyczący kontaktów]]>0,tblGoals34[[#This Row],[Rzeczywiste kontakty nawiązane w kwartale]]/tblGoals34[[#This Row],[Kwartalny cel dotyczący kontaktów]],\"\")","v":""}]
[]
["Refleksja nad wynikami / Uwagi dotyczące rzeczy do poprawy"]
["Prawie się udało. Spróbuj zadzwonić w porze lunchu."]

{"sheet":"Plan dla sieci kontaktów — KW4","index":7,"n_rows":20,"n_cols":6,"rows_kept":20,"merged":[[0,0,0,3],[2,0,2,3],[4,0,4,3],[14,5,17,5],[18,0,18,3]]}
["Plan rozszerzenia sieci kontaktów"]
["Wskazówki"]
["Zanotuj, jak planujesz rozszerzyć sieć kontaktów w tym kwartale (np. wykonując więcej połączeń telefonicznych, więcej podróżując itp.). Za każdym razem, gdy otrzymasz informacje o nowym kontakcie, zmień liczbę rzeczywistych nawiązanych kontaktów, aby śledzić postępy i widzieć, jak blisko jesteś osiągnięcia celu."]
[]
["Jak zamierzam rozszerzyć moją sieć kontaktów w tym kwartale"]
["1. Wykonanie większej liczby połączeń telefonicznych"]
["2. Więcej podróży"]
[]
[]
[]
[]
[]
[]
["Kwartalny cel dotyczący kontaktów","Termin","Rzeczywiste kontakty nawiązane w kwartale","Wyniki"]
[20,{"$f":"TODAY()","v":"2021-07-14"},12,{"$f":"IF(tblGoals348[[#This Row],[Kwartalny cel dotyczący kontaktów]]>0,tblGoals348[[#This Row],[Rzeczywiste kontakty nawiązane w kwartale]]/tblGoals348[[#This Row],[Kwartalny cel dotyczący kontaktów]],\"\")","v":{"v":0.6,"d":"60%"}},null,"0–25%\n26–50%\n51–75%\n76–100%\n\nKolor zmienia się w zależności od osiągniętej wartości procentowej"]
[{"$nulls":3},{"$f":"IF(tblGoals348[[#This Row],[Kwartalny cel dotyczący kontaktów]]>0,tblGoals348[[#This Row],[Rzeczywiste kontakty nawiązane w kwartale]]/tblGoals348[[#This Row],[Kwartalny cel dotyczący kontaktów]],\"\")","v":""}]
[{"$nulls":3},{"$f":"IF(tblGoals348[[#This Row],[Kwartalny cel dotyczący kontaktów]]>0,tblGoals348[[#This Row],[Rzeczywiste kontakty nawiązane w kwartale]]/tblGoals348[[#This Row],[Kwartalny cel dotyczący kontaktów]],\"\")","v":""}]
[]
["Refleksja nad wynikami / Uwagi dotyczące rzeczy do poprawy"]
["Prawie się udało. Spróbuj zadzwonić w porze lunchu."]